{"text_format":"3","workbook":"xlsx","n_sheets":2,"sheets":["البدء","الجدول الزمني السنوي"],"not_rendered":{"defined_names":2},"read":"whole","date_system":"1900"}

{"sheet":"البدء","index":0,"n_rows":8,"n_cols":2,"rows_kept":8}
[null,"حول هذا القالب"]
[null,"تعقب ساعات العمل اليومية والأسبوعية والشهرية والسنوية في \"بطاقة حضور الموظف\" هذه."]
[null,"املأ المعلومات الأساسية مثل اسم الموظف واسم المدير وعنوان البريد الإلكتروني ورقم الهاتف. "]
[null,"قم بإضافة الساعات لكل جدول شهري. قم بتسجيل الساعات العادية وساعات العمل الإضافي في أعمدة منفصلة لكل يوم من أيام الأسبوع من كل أسبوع. "]
[null,"يتم حساب إجمالي ساعات العمل والساعات العادية وساعات العمل الإضافية تلقائياً. "]
[null,"الملاحظات:"]
[null,"تم توفير إرشادات إضافية في العمود A في ورقة عمل الجدول الزمني السنوي. تم إخفاء هذا النص عن قصد. لإزالة النص، حدد العمود A، ثم حدد \"حذف\". لإظهار النص، حدد العمود A، ثم قم بتغيير لون الخط. "]
[null,"لمعرفة المزيد حول الجداول، اضغط على SHIFT ثم F10 داخل جدول، وحدد خيار \"جدول\"، ثم حدد \"النص البديل\"."]

{"sheet":"الجدول الزمني السنوي","index":1,"n_rows":132,"n_cols":15,"rows_kept":132,"merged":[[0,1,0,2],[0,4,0,14],[10,6,10,7],[21,6,21,7],[32,6,32,7],[33,4,33,14],[43,6,43,7],[54,6,54,7],[65,6,65,7],[66,4,66,14],[76,6,76,7],[87,6,87,7],[98,6,98,7],[99,4,99,14],[109,6,109,7],[120,6,120,7],[131,6,131,7]]}
["قم بإنشاء جدول زمني للموظفين يومي أو أسبوعي أو شهري أو سنوي في ورقة العمل هذه. \nتوجد تعليمات مفيدة حول كيفية استخدام هذا المصنف في الخلايا الموجودة في هذا العمود. السهم لأسفل لبدء الاستخدام.\nيوجد عنوان ورقة العمل هذه في الخلية الموجودة على اليسار وعنوان ربع السنة الذي يشمل يناير وفبراير ومارس في الخلية E1.","بطاقة حضور الموظف",null,null,"بطاقة حضور الموظف      يناير وفبراير ومارس: يومية وأسبوعية وشهرية وسنوية"]
["أدخل اسم الموظف في الخلية C2 وساعات العمل العادية والساعات الإضافية في جدول يناير بدءاً من الخلية E2.","اسم الموظف:",null,null,"يناير","الأسبوع 1","ساعات العمل الإضافية","الأسبوع 2","ساعات العمل الإضافية  ","الأسبوع 3","ساعات العمل الإضافية   ","الأسبوع 4","ساعات العمل الإضافية    ","الأسبوع 5","ساعات العمل الإضافية     "]
["أدخل اسم المدير في الخلية C3.","المدير:",null,null,"الاثنين",{"v":8,"d":"8.0"}]
["أدخل عنوان البريد الإلكتروني في الخلية C4.","البريد الإلكتروني:",null,null,"الثلاثاء",{"v":8,"d":"8.0"},{"v":2,"d":"2.0"}]
["أدخل رقم الهاتف في الخلية C5. توجد الإرشادات التالية في الخلية A9.","الهاتف:",null,null,"الأربعاء"]
[{"$nulls":4},"الخميس"]
[{"$nulls":4},"الجمعة"]
[{"$nulls":4},"السبت"]
["يتم حساب إجمالي الساعات العادية السنوية تلقائياً في الخلية C9.","ساعات العمل العادية:",{"$f":"ساعات_العمل_العادية","v":31},null,"الأحد"]
["يتم حساب إجمالي ساعات العمل الإضافية السنوية تلقائياً في الخلية C10.","ساعات العمل الإضافية:",{"$f":"ساعات_العمل_الساعات_الإضافية","v":4},null,"إجمالي الساعات الأسبوعية",{"$f":"SUM(F3:F9)","v":{"v":16,"d":"16.0"}},{"v":2,"d":"2.0"},{"v":0,"d":"0.0"},{"v":0,"d":"0.0"},{"v":0,"d":"0.0"},{"v":0,"d":"0.0"},{"v":0,"d":"0.0"},{"v":0,"d":"0.0"},{"v":0,"d":"0.0"},{"v":0,"d":"0.0"}]
["يتم حساب إجمالي الساعات الإجمالية السنوية تلقائياً في الخلية C11. يتم حساب مجموع الساعات العادية لشهر يناير في الخلية F11 ومجموع ساعات العمل الإضافية لشهر يناير في الخلية I11 تلقائياً. توجد الإرشادات التالية في الخلية A13.","الإجمالي",{"$f":"ساعات_العمل_العادية+ساعات_العمل_الساعات_الإضافية","v":35},null,{"$f":"TEXT(DATEVALUE(يناير[[#Headers],[يناير]]&\" \"&YEAR(TODAY())),\"mmm.\")&\" الإجمالي: ساعات العمل العادية\"","v":"يناير. الإجمالي: ساعات العمل العادية"},{"$f":"SUM(يناير[الأسبوع 1],يناير[الأسبوع 2],يناير[الأسبوع 3],يناير[الأسبوع 4],يناير[الأسبوع 5])","v":{"v":16,"d":"16.0"}},{"$f":"TEXT(DATEVALUE(يناير[[#Headers],[يناير]]&\" \"&YEAR(TODAY())),\"mmm.\")&\" الإجمالي: العمل الإضافي\"","v":"يناير. الإجمالي: العمل الإضافي"},null,{"$f":"SUM(يناير[ساعات العمل الإضافية],يناير[[ساعات العمل الإضافية  ]],يناير[[ساعات العمل الإضافية   ]],يناير[[ساعات العمل الإضافية    ]],يناير[[ساعات العمل الإضافية     ]])","v":{"v":2,"d":"2.0"}}]
[]
["أدخل ساعات العمل وساعات العمل الإضافية في جدول فبراير بداية من الخلية E13. توجد الإرشادات التالية في الخلية A22.",{"$nulls":3},"فبراير","الأسبوع 1","ساعات العمل الإضافية","الأسبوع 2","ساعات العمل الإضافية  ","الأسبوع 3","ساعات العمل الإضافية   ","الأسبوع 4","ساعات العمل الإضافية    ","الأسبوع 5","ساعات العمل الإضافية     "]
[{"$nulls":4},"الاثنين",{"v":8,"d":"8.0"}]
[{"$nulls":4},"الثلاثاء",{"v":7,"d":"7.0"},{"v":2,"d":"2.0"}]
[{"$nulls":4},"الأربعاء"]
[{"$nulls":4},"الخميس"]
[{"$nulls":4},"الجمعة"]
[{"$nulls":4},"السبت"]
[{"$nulls":4},"الأحد"]
[{"$nulls":4},"إجمالي الساعات الأسبوعية",{"$f":"SUM(F14:F20)","v":{"v":15,"d":"15.0"}},{"v":2,"d":"2.0"},{"v":0,"d":"0.0"},{"v":0,"d":"0.0"},{"v":0,"d":"0.0"},{"v":0,"d":"0.0"},{"v":0,"d":"0.0"},{"v":0,"d":"0.0"},{"v":0,"d":"0.0"},{"v":0,"d":"0.0"}]
["يتم حساب إجمالي الساعات العادية لشهر فبراير في الخلية F22 وساعات العمل الإضافية لشهر فبراير في الخلية I22 تلقائياً. توجد الإرشادات التالية في الخلية A24.",{"$nulls":3},{"$f":"TEXT(DATEVALUE(فبراير[[#Headers],[فبراير]]&\" \"&YEAR(TODAY())),\"mmm.\")&\" الإجمالي: ساعات العمل العادية\"","v":"فبراير. الإجمالي: ساعات العمل العادية"},{"$f":"SUM(فبراير[الأسبوع 1],فبراير[الأسبوع 2],فبراير[الأسبوع 3],فبراير[الأسبوع 4],فبراير[الأسبوع 5])","v":{"v":15,"d":"15.0"}},{"$f":"TEXT(DATEVALUE(فبراير[[#Headers],[فبراير]]&\" \"&YEAR(TODAY())),\"mmm.\")&\" الإجمالي: العمل الإضافي\"","v":"فبراير. الإجمالي: العمل الإضافي"},null,{"$f":"SUM(فبراير[ساعات العمل الإضافية],فبراير[[ساعات العمل الإضافية  ]],فبراير[[ساعات العمل الإضافية   ]],فبراير[[ساعات العمل الإضافية    ]],فبراير[[ساعات العمل الإضافية     ]])","v":{"v":2,"d":"2.0"}}]
[]
["أدخل ساعات العمل العادية وساعات العمل الإضافية في جدول مارس بدءاً من الخلية E24. توجد الإرشادات التالية في الخلية A33.",{"$nulls":3},"مارس","الأسبوع 1","ساعات العمل الإضافية","الأسبوع 2","ساعات العمل الإضافية ","الأسبوع 3","ساعات العمل الإضافية  ","الأسبوع 4","ساعات العمل الإضافية    ","الأسبوع 5","ساعات العمل الإضافية     "]
[{"$nulls":4},"الاثنين"]
[{"$nulls":4},"الثلاثاء"]
[{"$nulls":4},"الأربعاء"]
[{"$nulls":4},"الخميس"]
[{"$nulls":4},"الجمعة"]
[{"$nulls":4},"السبت"]
[{"$nulls":4},"الأحد"]
[{"$nulls":4},"إجمالي الساعات الأسبوعية",{"$f":"SUM(F25:F31)","v":{"v":0,"d":"0.0"}},{"v":0,"d":"0.0"},{"v":0,"d":"0.0"},{"v":0,"d":"0.0"},{"v":0,"d":"0.0"},{"v":0,"d":"0.0"},{"v":0,"d":"0.0"},{"v":0,"d":"0.0"},{"v":0,"d":"0.0"},{"v":0,"d":"0.0"}]
["يتم حساب إجمالي ساعات العمل العادية لشهر مارس في الخلية F33 وإجمالي ساعات العمل الإضافية لشهر مارس في الخلية I33 تلقائياً.",{"$nulls":3},{"$f":"TEXT(DATEVALUE(مارس[[#Headers],[مارس]]&\" \"&YEAR(TODAY())),\"mmm.\")&\" الإجمالي: ساعات العمل العادية\"","v":"مارس. الإجمالي: ساعات العمل العادية"},{"$f":"SUM(مارس[الأسبوع 1],مارس[الأسبوع 2],مارس[الأسبوع 3],مارس[الأسبوع 4],مارس[الأسبوع 5])","v":{"v":0,"d":"0.0"}},{"$f":"TEXT(DATEVALUE(مارس[[#Headers],[مارس]]&\" \"&YEAR(TODAY())),\"mmm.\")&\" الإجمالي: العمل الإضافي\"","v":"مارس. الإجمالي: العمل الإضافي"},null,{"$f":"SUM(مارس[ساعات العمل الإضافية],مارس[[ساعات العمل الإضافية ]],مارس[[ساعات العمل الإضافية  ]],مارس[[ساعات العمل الإضافية    ]],مارس[[ساعات العمل الإضافية     ]])","v":{"v":0,"d":"0.0"}}]
["يوجد عنوان الربع الثاني من السنة الذي يشمل أبريل ومايو ويونيو في الخلية E34. ",{"$nulls":3},"بطاقة حضور الموظف      أبريل ومايو ويونيو: يومية وأسبوعية وشهرية وسنوية"]
["أدخل ساعات العمل العادية وساعات العمل الإضافية لشهر أبريل في الجدول بدءاً في الخلية E35. توجد الإرشادات التالية في الخلية A44.",{"$nulls":3},"أبريل","الأسبوع 1","ساعات العمل الإضافية","الأسبوع 2","ساعات العمل الإضافية  ","الأسبوع 3","ساعات العمل الإضافية   ","الأسبوع 4","ساعات العمل الإضافية    ","الأسبوع 5","ساعات العمل الإضافية     "]
[{"$nulls":4},"الاثنين"]
[{"$nulls":4},"الثلاثاء"]
[{"$nulls":4},"الأربعاء"]
[{"$nulls":4},"الخميس"]
[{"$nulls":4},"الجمعة"]
[{"$nulls":4},"السبت"]
[{"$nulls":4},"الأحد"]
[{"$nulls":4},"إجمالي الساعات الأسبوعية",{"$f":"SUM(F36:F42)","v":{"v":0,"d":"0.0"}},{"v":0,"d":"0.0"},{"v":0,"d":"0.0"},{"v":0,"d":"0.0"},{"v":0,"d":"0.0"},{"v":0,"d":"0.0"},{"v":0,"d":"0.0"},{"v":0,"d":"0.0"},{"v":0,"d":"0.0"},{"v":0,"d":"0.0"}]
["يتم حساب إجمالي الساعات العمل لشهر أبريل في الخلية F44 وإجمالي ساعات العمل الإضافية لشهر أبريل في الخلية I44 تلقائياً. توجد الإرشادات التالية في الخلية A46.",{"$nulls":3},{"$f":"TEXT(DATEVALUE(أبريل[[#Headers],[أبريل]]&\" \"&YEAR(TODAY())),\"mmm.\")&\" الإجمالي: ساعات العمل العادية\"","v":"أبريل. الإجمالي: ساعات العمل العادية"},{"$f":"SUM(أبريل[الأسبوع 1],أبريل[الأسبوع 2],أبريل[الأسبوع 3],أبريل[الأسبوع 4],أبريل[الأسبوع 5])","v":{"v":0,"d":"0.0"}},{"$f":"TEXT(DATEVALUE(أبريل[[#Headers],[أبريل]]&\" \"&YEAR(TODAY())),\"mmm.\")&\" الإجمالي: العمل الإضافي\"","v":"أبريل. الإجمالي: العمل الإضافي"},null,{"$f":"SUM(أبريل[ساعات العمل الإضافية],أبريل[[ساعات العمل الإضافية  ]],أبريل[[ساعات العمل الإضافية   ]],أبريل[[ساعات العمل الإضافية    ]],أبريل[[ساعات العمل الإضافية     ]])","v":{"v":0,"d":"0.0"}}]
[]
["أدخل ساعات العمل العادية وساعات العمل الإضافية لشهر مايو في الجدول بدءاً من الخلية E46. توجد الإرشادات التالية في الخلية A55.",{"$nulls":3},"مايو","الأسبوع 1","ساعات العمل الإضافية","الأسبوع 2","ساعات العمل الإضافية  ","الأسبوع 3","ساعات العمل الإضافية   ","الأسبوع 4","ساعات العمل الإضافية    ","الأسبوع 5","ساعات العمل الإضافية     "]
[{"$nulls":4},"الاثنين"]
[{"$nulls":4},"الثلاثاء"]
[{"$nulls":4},"الأربعاء"]
[{"$nulls":4},"الخميس"]
[{"$nulls":4},"الجمعة"]
[{"$nulls":4},"السبت"]
[{"$nulls":4},"الأحد"]
[{"$nulls":4},"إجمالي الساعات الأسبوعية",{"$f":"SUM(F47:F53)","v":{"v":0,"d":"0.0"}},{"v":0,"d":"0.0"},{"v":0,"d":"0.0"},{"v":0,"d":"0.0"},{"v":0,"d":"0.0"},{"v":0,"d":"0.0"},{"v":0,"d":"0.0"},{"v":0,"d":"0.0"},{"v":0,"d":"0.0"},{"v":0,"d":"0.0"}]
["يتم حساب إجمالي ساعات العمل العادية لشهر مايو في الخلية F55 وإجمالي ساعات العمل الإضافية لشهر مايو في الخلية I55 تلقائياً. توجد الإرشادات التالية في الخلية A57.",{"$nulls":3},{"$f":"TEXT(DATEVALUE(مايو[[#Headers],[مايو]]&\" \"&YEAR(TODAY())),\"mmm.\")&\" الإجمالي: ساعات العمل العادية\"","v":"مايو. الإجمالي: ساعات العمل العادية"},{"$f":"SUM(مايو[الأسبوع 1],مايو[الأسبوع 2],مايو[الأسبوع 3],مايو[الأسبوع 4],مايو[الأسبوع 5])","v":{"v":0,"d":"0.0"}},{"$f":"TEXT(DATEVALUE(مايو[[#Headers],[مايو]]&\" \"&YEAR(TODAY())),\"mmm.\")&\" الإجمالي: العمل الإضافي\"","v":"مايو. الإجمالي: العمل الإضافي"},null,{"$f":"SUM(مايو[ساعات العمل الإضافية],مايو[[ساعات العمل الإضافية  ]],مايو[[ساعات العمل الإضافية   ]],مايو[[ساعات العمل الإضافية    ]],مايو[[ساعات العمل الإضافية     ]])","v":{"v":0,"d":"0.0"}}]
[]
["أدخل ساعات العمل العادية وساعات العمل الإضافية لشهر يونيو في الجدول بدءاً من الخلية E57. توجد الإرشادات التالية في الخلية A66.",{"$nulls":3},"يونيو","الأسبوع 1","ساعات العمل الإضافية","الأسبوع 2","ساعات العمل الإضافية  ","الأسبوع 3","ساعات العمل الإضافية   ","الأسبوع 4","ساعات العمل الإضافية    ","الأسبوع 5","ساعات العمل الإضافية     "]
[{"$nulls":4},"الاثنين"]
[{"$nulls":4},"الثلاثاء"]
[{"$nulls":4},"الأربعاء"]
[{"$nulls":4},"الخميس"]
[{"$nulls":4},"الجمعة"]
[{"$nulls":4},"السبت"]
[{"$nulls":4},"الأحد"]
[{"$nulls":4},"إجمالي الساعات الأسبوعية",{"$f":"SUM(F58:F64)","v":{"v":0,"d":"0.0"}},{"v":0,"d":"0.0"},{"v":0,"d":"0.0"},{"v":0,"d":"0.0"},{"v":0,"d":"0.0"},{"v":0,"d":"0.0"},{"v":0,"d":"0.0"},{"v":0,"d":"0.0"},{"v":0,"d":"0.0"},{"v":0,"d":"0.0"}]
["يتم حساب إجمالي ساعات العمل العادية لشهر يونيو في الخلية F66 وإجمالي ساعات العمل الإضافية لشهر يونيو في الخلية I66 تلقائياً.",{"$nulls":3},{"$f":"TEXT(DATEVALUE(يونيو[[#Headers],[يونيو]]&\" \"&YEAR(TODAY())),\"mmm.\")&\" الإجمالي: ساعات العمل العادية\"","v":"يونيو. الإجمالي: ساعات العمل العادية"},{"$f":"SUM(يونيو[الأسبوع 1],يونيو[الأسبوع 2],يونيو[الأسبوع 3],يونيو[الأسبوع 4],يونيو[الأسبوع 5])","v":{"v":0,"d":"0.0"}},{"$f":"TEXT(DATEVALUE(يونيو[[#Headers],[يونيو]]&\" \"&YEAR(TODAY())),\"mmm.\")&\" الإجمالي: العمل الإضافي\"","v":"يونيو. الإجمالي: العمل الإضافي"},null,{"$f":"SUM(يونيو[ساعات العمل الإضافية],يونيو[[ساعات العمل الإضافية  ]],يونيو[[ساعات العمل الإضافية   ]],يونيو[[ساعات العمل الإضافية    ]],يونيو[[ساعات العمل الإضافية     ]])","v":{"v":0,"d":"0.0"}}]
["يوجد عنوان الربع الثالث من السنة الذي يشمل يوليو وأغسطس وسبتمبر في الخلية E67. ",{"$nulls":3},"بطاقة حضور الموظف      يوليو وأغسطس وسبتمبر: يومية وأسبوعية وشهرية وسنوية"]
["أدخل ساعات العمل العادية وساعات العمل الإضافية لشهر يوليو في الجدول بدءاً من الخلية E68. الإرشادات التالية في الخلية A77.",{"$nulls":3},"يوليو","الأسبوع 1","ساعات العمل الإضافية","الأسبوع 2","ساعات العمل الإضافية ","الأسبوع 3","ساعات العمل الإضافية  ","الأسبوع 4","ساعات العمل الإضافية   ","الأسبوع 5","ساعات العمل الإضافية     "]
[{"$nulls":4},"الاثنين"]
[{"$nulls":4},"الثلاثاء"]
[{"$nulls":4},"الأربعاء"]
[{"$nulls":4},"الخميس"]
[{"$nulls":4},"الجمعة"]
[{"$nulls":4},"السبت"]
[{"$nulls":4},"الأحد"]
[{"$nulls":4},"إجمالي الساعات الأسبوعية",{"$f":"SUM(F69:F75)","v":{"v":0,"d":"0.0"}},{"v":0,"d":"0.0"},{"v":0,"d":"0.0"},{"v":0,"d":"0.0"},{"v":0,"d":"0.0"},{"v":0,"d":"0.0"},{"v":0,"d":"0.0"},{"v":0,"d":"0.0"},{"v":0,"d":"0.0"},{"v":0,"d":"0.0"}]
["يتم حساب إجمالي ساعات العمل العادية لشهر يوليو في الخلية F77 وإجمالي ساعات العمل الإضافية لشهر يوليو في الخلية I77 تلقائياً. توجد الإرشادات التالية في الخلية A79.",{"$nulls":3},{"$f":"TEXT(DATEVALUE(يوليو[[#Headers],[يوليو]]&\" \"&YEAR(TODAY())),\"mmm.\")&\" الإجمالي: ساعات العمل العادية\"","v":{"$error":"#VALUE!"}},{"$f":"SUM(يوليو[الأسبوع 1],يوليو[الأسبوع 2],يوليو[الأسبوع 3],يوليو[الأسبوع 4],يوليو[الأسبوع 5])","v":{"v":0,"d":"0.0"}},{"$f":"TEXT(DATEVALUE(يوليو[[#Headers],[يوليو]]&\" \"&YEAR(TODAY())),\"mmm.\")&\" الإجمالي: العمل الإضافي\"","v":{"$error":"#VALUE!"}},null,{"$f":"SUM(يوليو[ساعات العمل الإضافية],يوليو[[ساعات العمل الإضافية ]],يوليو[[ساعات العمل الإضافية  ]],يوليو[[ساعات العمل الإضافية   ]],يوليو[[ساعات العمل الإضافية     ]])","v":{"v":0,"d":"0.0"}}]
[]
["أدخل ساعات العمل العادية وساعات العمل الإضافية لشهر أغسطس في الجدول بدءاً في الخلية E79. توجد الإرشادات التالية في الخلية A88.",{"$nulls":3},"أغسطس","الأسبوع 1","ساعات العمل الإضافية","الأسبوع 2","ساعات العمل الإضافية ","الأسبوع 3","ساعات العمل الإضافية   ","الأسبوع 4","ساعات العمل الإضافية  ","الأسبوع 5","ساعات العمل الإضافية    "]
[{"$nulls":4},"الاثنين"]
[{"$nulls":4},"الثلاثاء"]
[{"$nulls":4},"الأربعاء"]
[{"$nulls":4},"الخميس"]
[{"$nulls":4},"الجمعة"]
[{"$nulls":4},"السبت"]
[{"$nulls":4},"الأحد"]
[{"$nulls":4},"إجمالي الساعات الأسبوعية",{"$f":"SUBTOTAL(109,أغسطس[الأسبوع 1])","v":{"v":0,"d":"0.0"}},{"$f":"SUBTOTAL(109,أغسطس[ساعات العمل الإضافية])","v":{"v":0,"d":"0.0"}},{"$f":"SUBTOTAL(109,أغسطس[الأسبوع 2])","v":{"v":0,"d":"0.0"}},{"$f":"SUBTOTAL(109,أغسطس[[ساعات العمل الإضافية ]])","v":{"v":0,"d":"0.0"}},{"$f":"SUBTOTAL(109,أغسطس[الأسبوع 3])","v":{"v":0,"d":"0.0"}},{"$f":"SUBTOTAL(109,أغسطس[[ساعات العمل الإضافية   ]])","v":{"v":0,"d":"0.0"}},{"$f":"SUBTOTAL(109,أغسطس[الأسبوع 4])","v":{"v":0,"d":"0.0"}},{"$f":"SUBTOTAL(109,أغسطس[[ساعات العمل الإضافية  ]])","v":{"v":0,"d":"0.0"}},{"$f":"SUBTOTAL(109,أغسطس[الأسبوع 5])","v":{"v":0,"d":"0.0"}},{"$f":"SUBTOTAL(109,أغسطس[[ساعات العمل الإضافية    ]])","v":{"v":0,"d":"0.0"}}]
["يتم حساب إجمالي ساعات العمل العادية لشهر أغسطس في الخلية F88 وإجمالي ساعات العمل الإضافية لشهر أغسطس في الخلية I88 تلقائياً. توجد الإرشادات التالية في الخلية A90.",{"$nulls":3},{"$f":"TEXT(DATEVALUE(أغسطس[[#Headers],[أغسطس]]&\" \"&YEAR(TODAY())),\"mmm.\")&\" الإجمالي: ساعات العمل العادية\"","v":"أغسطس. الإجمالي: ساعات العمل العادية"},{"$f":"SUM(أغسطس[الأسبوع 1],أغسطس[الأسبوع 2],أغسطس[الأسبوع 3],أغسطس[الأسبوع 4],أغسطس[الأسبوع 5])","v":{"v":0,"d":"0.0"}},{"$f":"TEXT(DATEVALUE(أغسطس[[#Headers],[أغسطس]]&\" \"&YEAR(TODAY())),\"mmm.\")&\" الإجمالي: العمل الإضافي\"","v":"أغسطس. الإجمالي: العمل الإضافي"},null,{"$f":"SUM(أغسطس[ساعات العمل الإضافية],أغسطس[[ساعات العمل الإضافية ]],أغسطس[[ساعات العمل الإضافية   ]],أغسطس[[ساعات العمل الإضافية  ]],أغسطس[[ساعات العمل الإضافية    ]])","v":{"v":0,"d":"0.0"}}]
[]
["أدخل ساعات العمل العادية وساعات العمل الإضافية لشهر سبتمبر في الجدول بدءاً في الخلية E90. توجد الإرشادات التالية في الخلية A99.",{"$nulls":3},"سبتمبر","الأسبوع 1","ساعات العمل الإضافية","الأسبوع 2","ساعات العمل الإضافية ","الأسبوع 3","ساعات العمل الإضافية  ","الأسبوع 4","ساعات العمل الإضافية   ","الأسبوع 5","ساعات العمل الإضافية    "]
[{"$nulls":4},"الاثنين"]
[{"$nulls":4},"الثلاثاء"]
[{"$nulls":4},"الأربعاء"]
[{"$nulls":4},"الخميس"]
[{"$nulls":4},"الجمعة"]
[{"$nulls":4},"السبت"]
[{"$nulls":4},"الأحد"]
[{"$nulls":4},"إجمالي الساعات الأسبوعية",{"$f":"SUBTOTAL(109,سبتمبر[الأسبوع 1])","v":{"v":0,"d":"0.0"}},{"$f":"SUBTOTAL(109,سبتمبر[ساعات العمل الإضافية])","v":{"v":0,"d":"0.0"}},{"$f":"SUBTOTAL(109,سبتمبر[الأسبوع 2])","v":{"v":0,"d":"0.0"}},{"$f":"SUBTOTAL(109,سبتمبر[[ساعات العمل الإضافية ]])","v":{"v":0,"d":"0.0"}},{"$f":"SUBTOTAL(109,سبتمبر[الأسبوع 3])","v":{"v":0,"d":"0.0"}},{"$f":"SUBTOTAL(109,سبتمبر[[ساعات العمل الإضافية  ]])","v":{"v":0,"d":"0.0"}},{"$f":"SUBTOTAL(109,سبتمبر[الأسبوع 4])","v":{"v":0,"d":"0.0"}},{"$f":"SUBTOTAL(109,سبتمبر[[ساعات العمل الإضافية   ]])","v":{"v":0,"d":"0.0"}},{"$f":"SUBTOTAL(109,سبتمبر[الأسبوع 5])","v":{"v":0,"d":"0.0"}},{"$f":"SUBTOTAL(109,سبتمبر[[ساعات العمل الإضافية    ]])","v":{"v":0,"d":"0.0"}}]
["يتم حساب إجمالي ساعات العمل العادية لشهر سبتمبر في الخلية F99 وإجمالي ساعات العمل الإضافية لشهر سبتمبر في الخلية I99 تلقائياً.",{"$nulls":3},{"$f":"TEXT(DATEVALUE(سبتمبر[[#Headers],[سبتمبر]]&\" \"&YEAR(TODAY())),\"mmm.\")&\" الإجمالي: ساعات العمل العادية\"","v":"سبتمبر. الإجمالي: ساعات العمل العادية"},{"$f":"SUM(سبتمبر[الأسبوع 1],سبتمبر[الأسبوع 2],سبتمبر[الأسبوع 3],سبتمبر[الأسبوع 4],سبتمبر[الأسبوع 5])","v":{"v":0,"d":"0.0"}},{"$f":"TEXT(DATEVALUE(سبتمبر[[#Headers],[سبتمبر]]&\" \"&YEAR(TODAY())),\"mmm.\")&\" الإجمالي: العمل الإضافي\"","v":"سبتمبر. الإجمالي: العمل الإضافي"},null,{"$f":"SUM(سبتمبر[ساعات العمل الإضافية],سبتمبر[[ساعات العمل الإضافية ]],سبتمبر[[ساعات العمل الإضافية  ]],سبتمبر[[ساعات العمل الإضافية   ]],سبتمبر[[ساعات العمل الإضافية    ]])","v":{"v":0,"d":"0.0"}}]
["يوجد عنوان الربع الرابع من السنة الذي يشمل أكتوبر ونوفمبر وديسمبر في الخلية E100. ",{"$nulls":3},"بطاقة حضور الموظف      ديسمبر وأكتوبر ونوفمبر: يومية وأسبوعية وشهرية وسنوية"]
["أدخل ساعات العمل العادية وساعات العمل الإضافية لشهر أكتوبر في الجدول بدءاً في الخلية E101. توجد الإرشادات التالية في الخلية A110.",{"$nulls":3},"أكتوبر","الأسبوع 1","ساعات العمل الإضافية","الأسبوع 2","ساعات العمل الإضافية ","الأسبوع 3","ساعات العمل الإضافية  ","الأسبوع 4","ساعات العمل الإضافية   ","الأسبوع 5","ساعات العمل الإضافية    "]
[{"$nulls":4},"الاثنين"]
[{"$nulls":4},"الثلاثاء"]
[{"$nulls":4},"الأربعاء"]
[{"$nulls":4},"الخميس"]
[{"$nulls":4},"الجمعة"]
[{"$nulls":4},"السبت"]
[{"$nulls":4},"الأحد"]
[{"$nulls":4},"إجمالي الساعات الأسبوعية",{"$f":"SUBTOTAL(109,أكتوبر[الأسبوع 1])","v":{"v":0,"d":"0.0"}},{"$f":"SUBTOTAL(109,أكتوبر[ساعات العمل الإضافية])","v":{"v":0,"d":"0.0"}},{"$f":"SUBTOTAL(109,أكتوبر[الأسبوع 2])","v":{"v":0,"d":"0.0"}},{"$f":"SUBTOTAL(109,أكتوبر[[ساعات العمل الإضافية ]])","v":{"v":0,"d":"0.0"}},{"$f":"SUBTOTAL(109,أكتوبر[الأسبوع 3])","v":{"v":0,"d":"0.0"}},{"$f":"SUBTOTAL(109,أكتوبر[[ساعات العمل الإضافية  ]])","v":{"v":0,"d":"0.0"}},{"$f":"SUBTOTAL(109,أكتوبر[الأسبوع 4])","v":{"v":0,"d":"0.0"}},{"$f":"SUBTOTAL(109,أكتوبر[[ساعات العمل الإضافية   ]])","v":{"v":0,"d":"0.0"}},{"$f":"SUBTOTAL(109,أكتوبر[الأسبوع 5])","v":{"v":0,"d":"0.0"}},{"$f":"SUBTOTAL(109,أكتوبر[[ساعات العمل الإضافية    ]])","v":{"v":0,"d":"0.0"}}]
["يتم حساب إجمالي ساعات العمل العادية لشهر أكتوبر في الخلية F110 وإجمالي ساعات العمل الإضافية لشهر أكتوبر في الخلية I110 تلقائياً. توجد الإرشادات التالية في الخلية A112.",{"$nulls":3},{"$f":"TEXT(DATEVALUE(أكتوبر[[#Headers],[أكتوبر]]&\" \"&YEAR(TODAY())),\"mmm.\")&\" الإجمالي: ساعات العمل العادية\"","v":"أكتوبر. الإجمالي: ساعات العمل العادية"},{"$f":"SUM(أكتوبر[الأسبوع 1],أكتوبر[الأسبوع 2],أكتوبر[الأسبوع 3],أكتوبر[الأسبوع 4],أكتوبر[الأسبوع 5])","v":{"v":0,"d":"0.0"}},{"$f":"TEXT(DATEVALUE(أكتوبر[[#Headers],[أكتوبر]]&\" \"&YEAR(TODAY())),\"mmm.\")&\" الإجمالي: العمل الإضافي\"","v":"أكتوبر. الإجمالي: العمل الإضافي"},null,{"$f":"SUM(أكتوبر[ساعات العمل الإضافية],أكتوبر[[ساعات العمل الإضافية ]],أكتوبر[[ساعات العمل الإضافية  ]],أكتوبر[[ساعات العمل الإضافية   ]],أكتوبر[[ساعات العمل الإضافية    ]])","v":{"v":0,"d":"0.0"}}]
[]
["أدخل ساعات العمل العادية وساعات العمل الإضافية لشهر نوفمبر في الجدول بدءاً في الخلية E112. توجد الإرشادات التالية في الخلية A121.",{"$nulls":3},"نوفمبر","الأسبوع 1","ساعات العمل الإضافية","الأسبوع 2","ساعات العمل الإضافية ","الأسبوع 3","ساعات العمل الإضافية  ","الأسبوع 4","ساعات العمل الإضافية    ","الأسبوع 5","ساعات العمل الإضافية     "]
[{"$nulls":4},"الاثنين"]
[{"$nulls":4},"الثلاثاء"]
[{"$nulls":4},"الأربعاء"]
[{"$nulls":4},"الخميس"]
[{"$nulls":4},"الجمعة"]
[{"$nulls":4},"السبت"]
[{"$nulls":4},"الأحد"]
[{"$nulls":4},"إجمالي الساعات الأسبوعية",{"$f":"SUBTOTAL(109,نوفمبر[الأسبوع 1])","v":{"v":0,"d":"0.0"}},{"$f":"SUBTOTAL(109,نوفمبر[ساعات العمل الإضافية])","v":{"v":0,"d":"0.0"}},{"$f":"SUBTOTAL(109,نوفمبر[الأسبوع 2])","v":{"v":0,"d":"0.0"}},{"$f":"SUBTOTAL(109,نوفمبر[[ساعات العمل الإضافية ]])","v":{"v":0,"d":"0.0"}},{"$f":"SUBTOTAL(109,نوفمبر[الأسبوع 3])","v":{"v":0,"d":"0.0"}},{"$f":"SUBTOTAL(109,نوفمبر[[ساعات العمل الإضافية  ]])","v":{"v":0,"d":"0.0"}},{"$f":"SUBTOTAL(109,نوفمبر[الأسبوع 4])","v":{"v":0,"d":"0.0"}},{"$f":"SUBTOTAL(109,نوفمبر[[ساعات العمل الإضافية    ]])","v":{"v":0,"d":"0.0"}},{"$f":"SUBTOTAL(109,نوفمبر[الأسبوع 5])","v":{"v":0,"d":"0.0"}},{"$f":"SUBTOTAL(109,نوفمبر[[ساعات العمل الإضافية     ]])","v":{"v":0,"d":"0.0"}}]
["يتم حساب إجمالي ساعات العمل العادية لشهر نوفمبر في الخلية F121 وإجمالي ساعات العمل الإضافية لشهر نوفمبر في الخلية I121 تلقائياً. توجد الإرشادات التالية في الخلية A123.",{"$nulls":3},{"$f":"TEXT(DATEVALUE(نوفمبر[[#Headers],[نوفمبر]]&\" \"&YEAR(TODAY())),\"mmm.\")&\" الإجمالي: ساعات العمل العادية\"","v":"نوفمبر. الإجمالي: ساعات العمل العادية"},{"$f":"SUM(نوفمبر[الأسبوع 1],نوفمبر[الأسبوع 2],نوفمبر[الأسبوع 3],نوفمبر[الأسبوع 4],نوفمبر[الأسبوع 5])","v":{"v":0,"d":"0.0"}},{"$f":"TEXT(DATEVALUE(نوفمبر[[#Headers],[نوفمبر]]&\" \"&YEAR(TODAY())),\"mmm.\")&\" الإجمالي: العمل الإضافي\"","v":"نوفمبر. الإجمالي: العمل الإضافي"},null,{"$f":"SUM(نوفمبر[ساعات العمل الإضافية],نوفمبر[[ساعات العمل الإضافية ]],نوفمبر[[ساعات العمل الإضافية  ]],نوفمبر[[ساعات العمل الإضافية    ]],نوفمبر[[ساعات العمل الإضافية     ]])","v":{"v":0,"d":"0.0"}}]
[]
["أدخل ساعات العمل العادية وساعات العمل الإضافية لشهر ديسمبر في الجدول بدءاً في الخلية E123. توجد الإرشادات التالية في الخلية A132.",{"$nulls":3},"ديسمبر","الأسبوع 1","ساعات العمل الإضافية","الأسبوع 2","ساعات العمل الإضافية ","الأسبوع 3","ساعات العمل الإضافية  ","الأسبوع 4","ساعات العمل الإضافية   ","الأسبوع 5","ساعات العمل الإضافية    "]
[{"$nulls":4},"الاثنين"]
[{"$nulls":4},"الثلاثاء"]
[{"$nulls":4},"الأربعاء"]
[{"$nulls":4},"الخميس"]
[{"$nulls":4},"الجمعة"]
[{"$nulls":4},"السبت"]
[{"$nulls":4},"الأحد"]
[{"$nulls":4},"إجمالي الساعات الأسبوعية",{"$f":"SUBTOTAL(109,ديسمبر[الأسبوع 1])","v":{"v":0,"d":"0.0"}},{"$f":"SUBTOTAL(109,ديسمبر[ساعات العمل الإضافية])","v":{"v":0,"d":"0.0"}},{"$f":"SUBTOTAL(109,ديسمبر[الأسبوع 2])","v":{"v":0,"d":"0.0"}},{"$f":"SUBTOTAL(109,ديسمبر[[ساعات العمل الإضافية ]])","v":{"v":0,"d":"0.0"}},{"$f":"SUBTOTAL(109,ديسمبر[الأسبوع 3])","v":{"v":0,"d":"0.0"}},{"$f":"SUBTOTAL(109,ديسمبر[[ساعات العمل الإضافية  ]])","v":{"v":0,"d":"0.0"}},{"$f":"SUBTOTAL(109,ديسمبر[الأسبوع 4])","v":{"v":0,"d":"0.0"}},{"$f":"SUBTOTAL(109,ديسمبر[[ساعات العمل الإضافية   ]])","v":{"v":0,"d":"0.0"}},{"$f":"SUBTOTAL(109,ديسمبر[الأسبوع 5])","v":{"v":0,"d":"0.0"}},{"$f":"SUBTOTAL(109,ديسمبر[[ساعات العمل الإضافية    ]])","v":{"v":0,"d":"0.0"}}]
["يتم حساب إجمالي ساعات العمل العادية لشهر ديسمبر في الخلية F132 وإجمالي ساعات العمل الإضافية لشهر ديسمبر في الخلية I132 تلقائياً.",{"$nulls":3},{"$f":"TEXT(DATEVALUE(ديسمبر[[#Headers],[ديسمبر]]&\" \"&YEAR(TODAY())),\"mmm.\")&\" الإجمالي: ساعات العمل العادية\"","v":"ديسمبر. الإجمالي: ساعات العمل العادية"},{"$f":"SUM(ديسمبر[الأسبوع 1],ديسمبر[الأسبوع 2],ديسمبر[الأسبوع 3],ديسمبر[الأسبوع 4],ديسمبر[الأسبوع 5])","v":{"v":0,"d":"0.0"}},{"$f":"TEXT(DATEVALUE(ديسمبر[[#Headers],[ديسمبر]]&\" \"&YEAR(TODAY())),\"mmm.\")&\" الإجمالي: العمل الإضافي\"","v":"ديسمبر. الإجمالي: العمل الإضافي"},null,{"$f":"SUM(G124:G130,I124:I130,K124:K130,M124:M130,O124:O130)","v":{"v":0,"d":"0.0"}}]